bitfinex-derivatives/quotes_SOLF0:USTF0_20250212
["timestamp","ask_amount","ask_price","bid_price","bid_amount"]
[1739364820837,8.86708628,197.41,197.34,8.86708628]
[1739364821733,8.86708628,197.41,197.37,5.0661]
[1739364821937,0.03350812,197.39,197.37,5.0661]
[1739364824735,8.9005944,197.39,197.36,0.03456916]
[1739364824940,8.86708628,197.37,197.36,0.03456916]
[1739364837450,8.9005944,197.39,197.36,0.03456916]
[1739364837655,13.9664944,197.39,197.36,0.03456916]
[1739364837956,8.86708628,197.37,197.36,0.03456916]
[1739364839955,13.93348628,197.37,197.36,0.03456916]
[1739364844162,5.0664,197.37,197.36,0.03456916]
[1739364845860,0.03350812,197.39,197.36,0.03456916]
[1739364846856,0.03350812,197.39,197.36,8.90165544]
[1739364848060,0.03350812,197.39,197.38,5.0661]
[1739364852567,0.03350812,197.39,197.36,5.10096916]
[1739364852767,8.9005944,197.39,197.36,5.10096916]
[1739364852969,8.9005944,197.39,197.36,0.03456916]
[1739364853466,8.86708628,197.37,197.36,0.03456916]
[1739364855166,13.93348628,197.37,197.36,0.03456916]
[1739364856670,5.0676,197.33,197.31,6.824392]
[1739364856869,8.86708628,197.33,197.31,6.824392]
[1739364857668,8.86708628,197.33,197.28,18.91821523]
[1739364857873,8.86708628,197.31,197.3,0.03639522]
[1739364860173,13.93498628,197.31,197.3,0.03639522]
[1739364865978,5.0684,197.3,197.25,5.0694]
[1739364866179,8.86708628,197.28,197.25,5.0694]
[1739364867079,8.90144788,197.28,197.25,5.1015423]
[1739364870078,8.90144788,197.28,197.25,0.0321423]
[1739364870286,13.97014788,197.28,197.25,0.0321423]
[1739364876684,8.86708628,197.26,197.25,0.0321423]
[1739364877291,13.93628628,197.26,197.25,0.0321423]
[1739364877685,5.0703,197.22,197.18,5.0712]
[1739364877883,8.86708628,197.2,197.18,5.0712]
[1739364878084,8.86708628,197.2,197.14,11.95188628]
[1739364878291,8.86708628,197.2,197.16,5.0716]
[1739364878992,0.03445377,197.2,197.17,5.0715]
[1739364881397,0.03445377,197.2,197.18,5.0712]
[1739364884491,0.03445377,197.2,197.16,0.03856537]
[1739364884696,8.86708628,197.18,197.16,0.03856537]
[1739364886791,13.97234005,197.2,197.16,0.03856537]
[1739364891304,13.97234005,197.2,197.16,5.11036537]
[1739364895503,8.90154005,197.2,197.16,0.03856537]
[1739364895705,8.90154005,197.2,197.17,5.0714]
[1739364909616,8.90154005,197.2,197.16,0.03856537]
[1739364909817,8.90154005,197.2,197.18,5.0711]
[1739364913922,0.03445377,197.2,197.18,5.0711]
[1739364915817,0.03445377,197.2,197.19,5.071]
[1739364917820,8.86708628,197.26,197.18,8.86708628]
[1739364918022,8.86708628,197.28,197.24,5.0697]
[1739364919017,8.86708628,197.26,197.24,0.0363712]
[1739364919420,8.86708628,197.26,197.16,15.90825225]
[1739364919722,8.86708628,197.21,197.16,15.90825225]
[1739364920718,0.03399244,197.2,197.19,5.071]
[1739364922323,0.03399244,197.2,197.17,5.10905858]
[1739364922625,8.86708628,197.19,197.17,5.10905858]
[1739364923825,0.03399244,197.2,197.19,5.071]
[1739364927822,0.03399244,197.2,197.19,13.93808628]
[1739364930026,0.03399244,197.2,197.19,5.071]
[1739364932134,0.03399244,197.2,197.17,0.03775858]
[1739364932333,8.86708628,197.19,197.17,5.10915858]
[1739364935936,0.03399244,197.2,197.17,0.03775858]
[1739364936137,0.03399244,197.2,197.17,8.90484486]
[1739364937136,0.03399244,197.2,197.19,5.071]
[1739364939539,0.03399244,197.2,197.17,5.10905858]
[1739364940040,8.86708628,197.19,197.17,5.10905858]
[1739364940936,8.86708628,197.19,197.17,0.03775858]
[1739364943743,5.0712,197.18,197.17,0.03775858]
[1739364947836,15.21,197.16,197.08,31.85898724]
[1739364948035,8.86708628,197.09,197.05,56.45429846]
[1739364948238,413.91445476,197.15,197.05,56.45429846]
[1739364948239,8.86708628,197.07,197.05,56.45429846]
[1739364949147,5.0743,197.06,197.05,56.45429846]
[1739364951543,8.86708628,197.07,197.04,0.03473037]
[1739364951843,8.86708628,197.05,197.04,0.03473037]
[1739364957652,13.94168628,197.05,197.04,0.03473037]
[1739364976971,8.86708628,197.05,196.94,13.53488628]
[1739364977170,8.86708628,197.01,196.98,5.0762]
[1739364978172,8.90344668,197.01,196.98,5.11189473]
[1739364981965,13.97914668,197.01,196.98,0.03569473]
[1739364982167,8.90344668,197.01,196.98,0.03569473]
[1739364983075,8.86708628,196.99,196.98,0.03569473]
[1739364984072,13.94318628,196.99,196.98,0.03569473]
[1739364992488,8.86708628,196.99,196.98,0.03569473]
[1739364993983,8.86708628,196.99,196.98,5.11209473]
[1739364997992,8.86708628,196.99,196.98,0.03569473]
[1739365002092,13.94318628,196.99,196.98,0.03569473]
[1739365005493,13.94318628,196.99,196.94,5.0774]
[1739365005699,8.86708628,196.95,196.94,5.0774]
[1739365007799,5.0774,196.94,196.93,0.03834129]
[1739365009802,13.94428628,196.95,196.93,0.03834129]
[1739365011404,8.86708628,196.95,196.93,0.03834129]
[1739365011607,5.0774,196.94,196.93,0.03834129]
[1739365027414,8.86708628,196.95,196.72,36.30959984]
[1739365027713,8.86708628,196.95,196.78,4.646]
[1739365027912,0.91574056,196.94,196.83,5.0802]
[1739365028113,5.0792,196.88,196.83,5.0802]
[1739365028512,10.44788628,196.95,196.83,5.0802]
[1739365028716,0.03464797,196.87,196.84,0.03390295]
[1739365028917,0.91568372,196.94,196.84,0.03390295]
[1739365029315,0.03390996,196.91,196.84,0.03390295]
[1739365029514,5.0794,196.87,196.84,0.03390295]
[1739365031218,8.86708628,196.85,196.84,0.03390295]
[1739365032418,8.86708628,196.85,196.78,4.646]
[1739365032618,8.86708628,196.79,196.78,4.646]
[1739365032811,8.86708628,196.79,196.78,1.488]
[1739365037817,8.86708628,196.79,196.77,0.03324785]
[1739365040518,8.86708628,196.79,196.77,5.11494785]
[1739365040821,0.03585244,196.8,196.77,0.03324785]
[1739365041016,8.90293872,196.8,196.77,0.03324785]
[1739365042024,8.90293872,196.8,196.78,5.0816]
[1739365042722,13.98403872,196.8,196.77,0.03324785]
[1739365043023,8.86708628,196.78,196.77,0.03324785]
[1739365043218,8.90293872,196.8,196.77,0.03324785]
[1739365044026,8.90293872,196.8,196.79,5.0813]
[1739365045425,8.86708628,196.84,196.82,5.0803]
[1739365045821,8.86708628,196.84,196.74,1.4808]
[1739365045822,8.86708628,196.84,196.79,8.86708628]
[1739365046022,8.86708628,196.84,196.83,5.0803]
[1739365054134,8.86708628,196.84,196.82,0.03895541]
[1739365056624,5.0803,196.83,196.82,0.03895541]
[1739365059131,8.86708628,196.84,196.82,0.03895541]
[1739365059333,13.94718628,196.84,196.82,0.03895541]
[1739365059538,8.86708628,196.84,196.82,0.03895541]
[1739365061435,13.94708628,196.84,196.82,0.03895541]
[1739365061832,8.86708628,196.84,196.82,0.03895541]
[1739365062431,5.0803,196.83,196.82,0.03895541]
[1739365064536,8.86708628,196.84,196.82,0.03895541]
[1739365064931,0.03489101,196.85,196.83,5.0802]
[1739365067141,0.03489101,196.85,196.84,5.08]
[1739365068144,8.86708628,196.88,196.86,5.0794]
[1739365069343,8.86708628,196.88,196.83,5.0801]
[1739365069545,8.86708628,196.86,196.83,5.0801]
[1739365074945,8.86708628,196.86,196.82,0.03895541]
[1739365075745,8.86708628,196.86,196.83,5.0802]
[1739365079148,8.86708628,196.86,196.82,0.03895541]
[1739365079347,8.86708628,196.86,196.84,5.0799]
[1739365080649,8.86708628,196.88,196.83,8.86708628]
[1739365082247,8.86708628,196.88,196.87,5.0792]
[1739365086454,0.0320966,196.89,196.87,5.0792]
[1739365086648,0.0320966,196.89,196.83,8.86708628]
[1739365086849,0.0320966,196.89,196.88,5.079]
[1739365090555,0.0320966,196.89,196.86,5.11428857]
[1739365092569,8.86708628,196.88,196.86,5.11428857]
[1739365093562,8.86708628,196.88,196.86,0.03498857]
[1739365099965,8.86708628,196.88,196.86,5.11438857]
[1739365100872,8.86708628,196.88,196.86,0.03498857]
[1739365101474,13.94608628,196.88,196.86,0.03498857]
[1739365103174,5.0792,196.87,196.86,0.03498857]
[1739365103374,8.86708628,196.88,196.76,1.5383]
[1739365103575,8.86708628,196.82,196.76,1.5383]
[1739365103873,8.86708628,196.82,196.78,5.0813]
[1739365104476,8.90002072,196.82,196.78,5.11378516]
[1739365104976,13.98082072,196.82,196.78,0.03248516]
[1739365105372,0.03293444,196.82,196.79,8.86708628]
[1739365105573,0.03293444,196.82,196.81,5.0808]
[1739365106769,8.86708628,196.88,196.86,5.0794]
[1739365107476,8.86708628,196.88,196.82,1.5127]
[1739365107677,8.86708628,196.86,196.84,5.0798]
[1739365108275,8.86708628,196.86,196.83,5.11481215]
[1739365109078,13.94668628,196.86,196.83,0.03461215]
[1739365110677,8.86708628,196.84,196.83,0.03461215]
[1739365113679,13.94708628,196.84,196.83,0.03461215]
[1739365114385,8.86708628,196.84,196.76,5.082]
[1739365114685,8.86708628,196.78,196.76,5.082]
[1739365115184,8.86708628,196.78,196.73,61.39668091]
[1739365115384,8.86708628,196.78,196.71,8.86708628]
[1739365115684,0.03325791,196.77,196.74,0.03760529]
[1739365116891,8.86708628,196.76,196.74,0.03760529]
[1739365117786,13.94918628,196.76,196.74,0.03760529]
[1739365119183,8.86708628,196.76,196.74,0.03760529]
[1739365119385,13.94928628,196.76,196.74,0.03760529]
[1739365120187,5.0823,196.75,196.74,0.03760529]
[1739365123788,5.0832,196.72,196.68,5.0839]
[1739365123989,8.86708628,196.69,196.68,5.0839]
[1739365124185,8.86708628,196.69,196.65,5.0848]
[1739365124383,8.86708628,196.67,196.65,5.0848]
[1739365125286,8.86708628,196.67,196.64,0.03377709]
[1739365125487,8.86708628,196.65,196.64,0.03377709]
[1739365125684,13.95168628,196.67,196.64,0.03377709]
[1739365125890,0.03592689,196.68,196.64,0.03377709]
[1739365126085,0.03592689,196.68,196.65,8.86708628]
[1739365126286,8.86708628,196.73,196.65,8.86708628]
[1739365126586,8.86708628,196.73,196.67,8.86708628]
[1739365127484,0.03903506,196.72,196.68,0.0378153]
[1739365128189,0.03903506,196.72,196.69,5.0839]
[1739365130082,0.03903506,196.72,196.7,5.0835]
[1739365130489,0.03903506,196.72,196.69,8.86708628]
[1739365130687,0.03903506,196.72,196.71,5.0834]
[1739365138997,8.86708628,196.75,196.69,8.86708628]
[1739365139202,8.86708628,196.75,196.73,5.0826]
[1739365143102,8.86708628,196.75,196.72,0.03483432]
[1739365143303,8.86708628,196.73,196.72,0.03483432]
[1739365143701,13.94988628,196.73,196.72,0.03483432]
[1739365144206,13.94988628,196.73,196.65,1.4881]
[1739365144207,5.0834,196.71,196.65,1.4881]
[1739365144409,8.86708628,196.68,196.65,6.5728]
[1739365145499,8.90464961,196.68,196.65,1.52391574]
[1739365147207,13.98884961,196.68,196.65,1.52391574]
[1739365147505,8.86708628,196.66,196.65,0.03581574]
[1739365150816,8.90464961,196.68,196.65,0.03581574]
[1739365151045,0.03756333,196.68,196.65,5.12071574]
[1739365152008,8.90464961,196.68,196.65,5.12071574]
[1739365152510,8.86708628,196.66,196.65,0.03581574]
[1739365153404,8.86708628,196.66,196.59,5.0863]
[1739365153607,8.86708628,196.61,196.59,5.0863]
[1739365158910,8.86708628,196.61,196.58,0.03475961]
[1739365160416,13.95308628,196.61,196.58,0.03475961]
[1739365162716,8.86708628,196.59,196.58,0.03475961]
[1739365163416,8.86708628,196.59,196.58,5.12145961]
[1739365163623,8.86708628,196.59,196.47,8.86708628]
[1739365163921,8.86708628,196.54,196.48,4.7638]
[1739365164317,8.86708628,196.56,196.49,8.86708628]
[1739365164822,0.03858721,196.54,196.51,0.03755871]
[1739365165420,0.03858721,196.54,196.53,5.088]
[1739365166317,8.86708628,196.58,196.55,5.0873]
[1739365167618,8.90093399,196.58,196.55,5.0873]
[1739365168824,8.90093399,196.58,196.51,8.90464499]
[1739365169021,8.90093399,196.58,196.56,5.0871]
[1739365172222,8.90093399,196.58,196.55,0.03409495]
[1739365172422,8.86708628,196.56,196.55,0.03409495]
[1739365175727,13.95428628,196.56,196.55,0.03409495]
[1739365177425,8.86708628,196.56,196.55,0.03409495]
[1739365178326,8.90093399,196.58,196.56,5.0872]
[1739365179027,8.90093399,196.58,196.57,5.087]
[1739365179721,0.03384771,196.58,196.57,5.087]
[1739365181632,8.90093399,196.58,196.57,5.087]
[1739365184130,8.90093399,196.58,196.55,0.03409495]
[1739365184328,8.86708628,196.56,196.55,0.03409495]
[1739365185730,0.03384771,196.58,196.55,0.03409495]
[1739365185731,8.90093399,196.58,196.55,0.03409495]
[1739365186828,8.86708628,196.56,196.55,0.03409495]
[1739365187033,8.86708628,196.56,196.48,1.5854]
[1739365187334,8.86708628,196.51,196.48,1.5854]
[1739365187633,8.86708628,196.51,196.49,5.0889]
[1739365187927,8.86708628,196.56,196.48,10.45248628]
[1739365188127,0.0341905,196.52,196.51,5.0885]
[1739365193142,8.86708628,196.58,196.54,5.0876]
[1739365194337,8.90093933,196.58,196.54,5.12350063]
[1739365194633,8.86708628,196.56,196.54,5.12350063]
[1739365195436,8.86708628,196.56,196.54,0.03590063]
[1739365196838,13.95458628,196.56,196.54,0.03590063]
[1739365197038,8.86708628,196.56,196.54,0.03590063]
[1739365198146,5.0875,196.55,196.54,0.03590063]
[1739365198333,5.0875,196.55,196.47,5.0894]
[1739365198643,0.03385305,196.58,196.47,5.0894]
[1739365198644,8.86708628,196.5,196.47,5.0894]
[1739365199534,8.90214281,196.5,196.47,5.12244676]
[1739365200140,8.90214281,196.5,196.47,0.03304676]
[1739365200441,8.90214281,196.5,196.48,5.0891]
[1739365202044,0.03505653,196.5,196.49,5.0891]
[1739365203241,8.86708628,196.54,196.48,1.5581]
[1739365203441,8.86708628,196.54,196.48,10.42518628]
[1739365203740,8.86708628,196.56,196.5,8.86708628]
[1739365203944,8.86708628,196.58,196.52,8.86708628]
[1739365204645,0.0387501,196.57,196.53,0.03760328]
[1739365205046,0.0387501,196.57,196.56,5.0872]
[1739365206244,8.86708628,196.62,196.59,5.0864]
[1739365206546,8.86708628,196.62,196.56,8.86708628]
[1739365207142,15.93339628,196.68,196.6,8.86708628]
[1739365207349,5.341e-05,196.61,196.6,8.86708628]
[1739365207547,15.93339628,196.68,196.64,5.0851]
[1739365207746,15.93339628,196.68,196.6,8.86708628]
[1739365208050,15.93339628,196.68,196.62,8.86708628]
[1739365208250,8.86708628,196.66,196.58,8.86708628]
[1739365208452,8.86708628,196.64,196.58,8.86708628]
[1739365208743,8.86708628,196.62,196.6,0.03629882]
[1739365209350,5.0859,196.61,196.6,0.03629882]
[1739365210753,5.0866,196.59,196.49,1.5581]
[1739365210956,8.86708628,196.55,196.49,1.5581]
[1739365211354,8.86708628,196.53,196.49,1.5581]
[1739365211751,8.86708628,196.53,196.46,8.86708628]
[1739365211953,8.89994286,196.53,196.49,0.03543801]
[1739365214259,8.86708628,196.51,196.49,0.03543801]
[1739365214857,5.0888,196.5,196.49,0.03543801]
[1739365215550,8.86708628,196.51,196.49,0.03543801]
[1739365216561,8.89994286,196.53,196.49,0.03543801]
[1739365217664,0.03285658,196.53,196.49,0.03543801]
[1739365219061,0.03285658,196.53,196.51,5.0884]
[1739365219655,0.03285658,196.53,196.52,5.0883]
[1739365221563,0.03285658,196.53,196.51,5.0885]
[1739365223960,0.03285658,196.53,196.52,5.0883]
[1739365225864,5.0871,196.57,196.53,5.088]
[1739365226465,13.98775166,196.57,196.5,1.6131]
[1739365226768,13.98775166,196.57,196.45,13.98775166]
[1739365226963,5.0875,196.56,196.49,5.12551387]
[1739365227267,0.03820975,196.53,196.49,5.12551387]
[1739365227469,0.03820975,196.53,196.49,0.03671387]
[1739365228470,0.03820975,196.53,196.51,5.0885]
[1739365228968,0.03820975,196.53,196.52,5.0883]
[1739365229665,5.0862,196.61,196.55,5.0874]
[1739365230468,19.07335166,196.63,196.57,5.0869]
[1739365230666,83.75441165,196.65,196.54,13.98775166]
[1739365230868,0.03584364,196.62,196.58,0.03901507]
[1739365231667,0.03584364,196.62,196.59,5.0862]
[1739365232171,0.03584364,196.62,196.6,5.0861]
[1739365232868,0.03584364,196.62,196.61,5.0859]
[1739365236371,0.03584364,196.62,196.59,5.0864]
[1739365236571,0.03584364,196.62,196.58,0.03901507]
[1739365238274,13.98775166,196.6,196.58,0.03901507]
[1739365238476,5.0867,196.58,196.53,5.0879]
[1739365238676,13.98775166,196.57,196.53,5.0879]
[1739365238877,13.98775166,196.57,196.5,1.5807]
[1739365239179,13.98775166,196.57,196.46,1.6217]
[1739365239382,13.98775166,196.54,196.43,1.6033]
[1739365239578,13.98775166,196.48,196.43,5.0905]
[1739365239777,13.98775166,196.48,196.47,0.0353706]
[1739365240172,5.12125537,196.5,196.47,0.0353706]
[1739365240373,0.03235537,196.5,196.47,0.0353706]
[1739365243679,0.03235537,196.5,196.48,5.0892]
[1739365243875,0.03235537,196.5,196.47,0.0353706]
[1739365244081,15.55465166,196.63,196.48,13.98775166]
[1739365244282,15.55465166,196.63,196.51,13.98775166]
[1739365244481,5.0861,196.61,196.53,5.0878]
[1739365244683,15.55465166,196.63,196.51,13.98775166]
[1739365244983,1.5795,196.64,196.57,5.0868]
[1739365244984,83.75441165,196.64,196.57,5.0868]
[1739365245186,0.03482078,196.59,196.57,5.0868]
[1739365245483,0.03482078,196.59,196.57,13.98775166]
[1739365245680,83.75441165,196.64,196.57,13.98775166]
[1739365246782,0.0327235,196.62,196.58,5.0866]
[1739365247180,0.0327235,196.62,196.58,5.12245486]
[1739365248982,0.0327235,196.62,196.58,0.03585486]
[1739365249589,0.0327235,196.62,196.58,1.56165486]
[1739365249781,0.0327235,196.62,196.61,5.0859]
[1739365254283,7.06631,196.68,196.66,5.0845]
[1739365254484,7.06631,196.68,196.61,22.36108577]
[1739365254881,7.06631,196.68,196.66,5.0846]
[1739365255182,7.06631,196.68,196.61,22.36108577]
[1739365255383,7.06631,196.68,196.65,0.03764244]
[1739365255682,7.06631,196.68,196.67,5.0844]
[1739365260986,4.62821,196.68,196.67,5.0844]
[1739365261193,4.62821,196.68,196.66,1.6175]
[1739365261194,4.62821,196.68,196.65,0.03764244]
[1739365261788,5.0846,196.67,196.65,0.03764244]
[1739365262178,4.62821,196.68,196.65,0.03764244]
[1739365262379,5.0847,196.66,196.65,0.03764244]
[1739365263182,5.0852,196.64,196.58,5.0867]
[1739365263989,5.0852,196.64,196.51,1.5797]
[1739365263990,22.36108577,196.64,196.51,1.5797]
[1739365264489,5.12196762,196.59,196.56,0.03655601]
[1739365266386,0.03526762,196.59,196.56,0.03655601]
[1739365267189,0.03526762,196.59,196.58,5.0867]
[1739365267891,0.03526762,196.59,196.56,5.12375601]
[1739365268087,0.03526762,196.59,196.56,0.03655601]
[1739365269389,22.36108577,196.58,196.44,1.5792]
[1739365269584,5.0878,196.54,196.47,5.0893]
[1739365270494,0.03902491,196.52,196.49,0.0336295]
[1739365270793,0.03902491,196.52,196.49,5.1226295]
[1739365271992,0.03902491,196.52,196.51,5.0885]
[1739365272993,13.99179146,196.64,196.51,13.99179146]
[1739365273188,13.99179146,196.64,196.52,1.5145]
[1739365273690,13.99179146,196.61,196.52,1.5145]
[1739365273986,13.99179146,196.61,196.55,0.03553267]
[1739365274191,0.03315665,196.58,196.55,0.03553267]
[1739365275791,5.087,196.57,196.55,0.03553267]
[1739365276190,5.11985665,196.58,196.55,0.03553267]
[1739365276695,5.087,196.57,196.55,0.03553267]
[1739365277196,0.03315665,196.58,196.55,0.03553267]
[1739365278396,0.03315665,196.58,196.57,5.087]
[1739365279897,4.62821,196.68,196.63,5.0854]
[1739365280692,4.62821,196.68,196.56,3.1551]
[1739365280896,0.03202142,196.67,196.64,0.03824045]
[1739365281097,0.03202142,196.67,196.58,22.36004021]
[1739365281295,0.03202142,196.67,196.64,0.0377964]
[1739365281593,0.03202142,196.67,196.65,5.0847]
[1739365283697,0.03202142,196.67,196.66,5.0846]
[1739365286398,22.36004021,196.77,196.64,0.0377964]
[1739365286597,22.36004021,196.77,196.69,5.0836]
[1739365286898,22.36004021,196.77,196.62,1.5694]
[1739365287094,22.36004021,196.77,196.7,5.0836]
[1739365287299,5.0823,196.76,196.7,5.0836]
[1739365287494,5.0823,196.76,196.72,0.03695581]
[1739365287699,0.0375264,196.75,196.72,0.03695581]
[1739365288201,5.0828,196.73,196.72,0.03695581]
[1739365293196,5.0826,196.74,196.72,0.03695581]
[1739365293703,0.0375264,196.75,196.72,0.03695581]
[1739365295203,5.0826,196.74,196.72,0.03695581]
[1739365296906,0.0375264,196.75,196.72,5.11995581]
[1739365300907,0.0375264,196.75,196.72,0.03695581]
[1739365301112,0.0375264,196.75,196.74,5.0826]
[1739365302514,0.0375264,196.75,196.72,5.11985581]
[1739365304817,0.0375264,196.75,196.74,5.0826]
[1739365307413,0.0375264,196.75,196.72,5.11985581]
[1739365307609,13.95625601,196.74,196.72,0.03695581]
[1739365308014,5.0828,196.73,196.72,0.03695581]
[1739365308213,0.0375264,196.75,196.72,0.03695581]
[1739365308714,0.0375264,196.75,196.74,5.0826]
[1739365313715,0.0375264,196.75,196.72,5.11985581]
[1739365314319,0.0375264,196.75,196.72,0.03695581]
[1739365314519,0.0375264,196.75,196.73,5.0826]
[1739365315721,0.0375264,196.75,196.74,5.0826]
[1739365319226,1.5325,196.84,196.73,13.95625601]
[1739365319428,1.5325,196.84,196.78,5.0814]
[1739365319429,6.6127,196.84,196.78,5.0814]
[1739365320219,1.5325,196.84,196.79,5.0812]
[1739365320424,13.95625601,196.8,196.63,13.95625601]
[1739365320621,13.95625601,196.77,196.65,1.4968]
[1739365320822,5.0829,196.73,196.65,1.4968]
[1739365321126,13.95625601,196.77,196.65,1.4968]
[1739365321628,0.03393266,196.73,196.69,0.03615307]
[1739365323328,5.11683266,196.73,196.69,0.03615307]
[1739365323527,0.03393266,196.73,196.69,0.03615307]
[1739365324329,5.0831,196.72,196.69,0.03615307]
[1739365324637,0.03393266,196.73,196.69,0.03615307]
[1739365325530,0.03393266,196.73,196.69,5.11995307]
[1739365325727,0.03393266,196.73,196.69,0.03615307]
[1739365326129,5.0834,196.71,196.69,0.03615307]
[1739365327532,5.11703266,196.73,196.69,0.03615307]
[1739365328627,0.03393266,196.73,196.69,0.03615307]
[1739365328830,0.03393266,196.73,196.69,13.99240908]
[1739365329136,5.11693266,196.73,196.69,0.03615307]
[1739365330435,0.03393266,196.73,196.69,0.03615307]
[1739365331338,0.03393266,196.73,196.69,13.99240908]
[1739365331635,5.0814,196.79,196.69,13.99240908]
[1739365331837,5.0814,196.79,196.7,3.0624]
[1739365333031,0.03326632,196.76,196.73,0.03804022]
[1739365334140,0.03326632,196.76,196.75,5.0823]
[1739365335934,5.0805,196.83,196.78,5.0814]
[1739365336239,13.95625601,196.86,196.72,13.95625601]
[1739365336840,13.95625601,196.86,196.73,1.6122]
[1739365337034,0.03597912,196.81,196.8,5.0808]
[1739365337234,5.0799,196.85,196.8,5.0808]
[1739365337438,0.0345642,196.82,196.8,5.0808]
[1739365337640,0.0345642,196.82,196.81,5.0808]
[1739365347649,0.0345642,196.82,196.81,14.00371279]
[1739365359249,0.0345642,196.82,196.81,5.0808]
[1739365361652,0.0345642,196.82,196.79,14.03646288]
[1739365362045,0.0345642,196.82,196.79,8.95536288]
[1739365363051,0.0345642,196.82,196.8,5.0808]
[1739365364349,0.0345642,196.82,196.81,14.00371279]
[1739365364851,8.92291279,196.93,196.81,8.92291279]
[1739365365047,5.078,196.92,196.87,8.92291279]
[1739365365551,5.078,196.92,196.87,14.00201279]
[1739365365950,0.03758203,196.91,196.88,0.03405944]
[1739365366650,8.92291279,196.89,196.88,0.03405944]
[1739365367048,8.92291279,196.89,196.79,8.92291279]
[1739365367250,8.92291279,196.84,196.77,8.92291279]
[1739365367750,8.92291279,196.84,196.8,5.0809]
[1739365368148,8.92291279,196.84,196.8,5.11923975]
[1739365368351,8.96125308,196.84,196.8,5.11923975]
[1739365368550,8.92291279,196.82,196.8,5.11923975]
[1739365370151,8.92291279,196.82,196.8,0.03833975]
[1739365370569,8.92291279,196.78,196.75,5.0821]
[1739365371353,8.92291279,196.78,196.73,23.84596]
[1739365371553,8.92291279,196.76,196.73,18.76326]
[1739365371858,8.92291279,196.76,196.74,0.03318344]
[1739365373359,5.12082509,196.77,196.74,0.03318344]
[1739365373660,0.03892509,196.77,196.74,5.11558344]
[1739365373862,0.03892509,196.77,196.76,8.92291279]
[1739365375156,0.03892509,196.77,196.76,14.00501279]
[1739365376658,0.03892509,196.77,196.76,5.0821]
[1739365379357,13.94774642,196.89,196.76,13.94774642]
[1739365379557,5.0795,196.86,196.76,13.94774642]
[1739365380467,0.03849747,196.83,196.82,5.0805]
[1739365380666,5.0792,196.88,196.82,5.0805]
[1739365380868,0.03248887,196.84,196.82,5.0805]
[1739365381367,0.03248887,196.84,196.83,5.0803]
[1739365383964,0.03248887,196.84,196.81,0.03400563]
[1739365384169,0.03248887,196.84,196.81,5.11460563]
[1739365384365,0.03248887,196.84,196.81,0.03400563]
[1739365384568,0.03248887,196.84,196.83,5.0803]
[1739365385268,8.887e-05,196.84,196.83,5.0803]
[1739365386769,8.887e-05,196.84,196.81,0.03400563]
[1739365387072,13.94783529,196.84,196.81,0.03400563]
[1739365387569,13.94783529,196.84,196.76,5.0818]
[1739365387771,13.94774642,196.81,196.74,5.0824]
[1739365388162,13.94774642,196.81,196.71,1.5854]
[1739365388370,5.0814,196.79,196.71,1.5854]
[1739365388675,0.03513591,196.78,196.74,0.03861682]
[1739365388867,5.11673591,196.78,196.74,0.03861682]
[1739365389363,13.94774642,196.75,196.74,0.03861682]
[1739365389963,19.03004642,196.75,196.74,0.03861682]
[1739365391469,5.0826,196.74,196.73,13.85653509]
[1739365391674,5.0826,196.74,196.73,11.24103509]
[1739365392167,13.94774642,196.75,196.73,11.24103509]
[1739365393774,19.03014642,196.75,196.73,11.24103509]
[1739365394276,13.94774642,196.75,196.73,11.24103509]
[1739365395074,5.0826,196.74,196.73,11.24103509]
[1739365396476,5.0822,196.76,196.73,11.24103509]
[1739365402190,5.0826,196.74,196.73,11.24103509]
[1739365403791,14.01910123,196.74,196.73,11.24103509]
[1739365405391,8.97163714,196.78,196.73,11.24103509]
[1739365405591,0.03513591,196.78,196.73,11.24103509]
[1739365407093,0.03513591,196.78,196.75,5.0823]
[1739365407793,0.03513591,196.78,196.73,11.24103509]
[1739365408184,13.95193547,196.77,196.73,11.24103509]
[1739365408483,5.0826,196.74,196.73,11.24103509]
[1739365411888,19.03453547,196.74,196.73,11.24103509]
[1739365412098,13.95193547,196.74,196.66,1.4853]
[1739365412293,13.95193547,196.7,196.58,13.95193547]
[1739365412493,13.95193547,196.7,196.57,3.1772]
[1739365412494,13.95193547,196.7,196.59,1.5424]
[1739365413398,0.03471531,196.66,196.63,0.03657848]
[1739365414096,13.95193547,196.64,196.63,0.03657848]
[1739365414898,5.0849,196.65,196.63,0.03657848]
[1739365415999,5.11941531,196.66,196.63,0.03657848]
[1739365418801,0.03471531,196.66,196.63,0.03657848]
[1739365419497,13.95193547,196.73,196.63,0.03657848]
[1739365420092,5.0838,196.7,196.65,5.0847]
[1739365420491,5.0838,196.7,196.66,0.03221886]
[1739365420697,0.03400688,196.69,196.66,5.11661886]